[Event "Prague Open 2024"]
[Site "Prague"]
[Date "2024.01.05"]
[Round "1.1"]
[White "Topencik, Bruno"]
[Black "Agdestein, Simen"]
[Result "0-1"]
[ECO "B20"]
[WhiteElo "1874"]
[BlackElo "2568"]
[Annotator "TA"]
[PlyCount "86"]
[EventDate "2024.01.02"]
[EventType "swiss"]
[EventCountry "CZE"]
[SourceTitle "playchess.com"]
[Source "ChessBase"]
[SourceQuality "1"]
[TimeControl "40/5400+30:1800+30"]

{[%evp 14,86,11,0,13,11,0,0,3,17,23,-10,-6,-6,-10,-22,-23,-22,-12,-21,-11,-47,-57,-56,-44,-72,-32,-36,-33,-62,-71,-93,-92,-225,-144,-118,-134,-129,-139,-215,-139,-177,-182,-181,-167,-197,-206,-212,-202,-211,-220,-272,-262,-300,-277,-356,-356,-356,-356,-500,-489,-666,-659,-653,-651,-995,-997,-1329,-1250,-1255,-1230,-29989,-29990,-29990,-29991]} 1. e4 {[%emt 0:00:04]} c5 {[%emt 0:00:07]} 2. Be2 {[%emt 0:00:13]} Nc6 {[%emt 0:00:10]} 3. f4 {[%emt 0:00:35]} d5 {[%emt 0:01:32]} 4. d3 {[%emt 0:00:32]} Nf6 {[%emt 0:02:06]} 5. e5 {[%emt 0:00:36]} Nd7 {[%emt 0:01:05]} 6. Nf3 {[%emt 0:01:38]} e6 {[%emt 0:01:28]} 7. O-O {[%emt 0:02:41]} Be7 {[%emt 0:02:07]} 8. c4 {[%emt 0:03:03]} Nb6 {[%emt 0:03:28] B21: Sicilian: 2 f4 and Morra Gambit.} 9. Nc3 {[%emt 0:06:09]} O-O {[%emt 0:00:17]} 10. Bd2 {[%emt 0:10:30]} f6 {[%emt 0:01:44] [#] The position is equal.} 11. exf6 $146 {[%emt 0:02:08]} ({Predecessor:} 11. Be1 Bd7 12. Bg3 fxe5 13. fxe5 Be8 14. Kh1 Bg6 15. Qd2 Qd7 16. Rad1 Rad8 17. Qc1 h6 18. b3 {½-½ Schoepf,U (2165)-Schoenthier,F (2270) Oberliga NRW 8788 II 1987 (1)}) 11... Bxf6 {[%emt 0:01:45]} 12. Qc2 {[%emt 0:03:48]} (12. a4 $5 {[%cal Ra4a5]}) 12... Bd7 {[%emt 0:03:30][%cal Bc8d7,Bd7e8,Be8g6][%mdl 32]} 13. Rae1 {[%emt 0:09:02]} Be8 {[%emt 0:02:02]} 14. Nd1 {[%emt 0:10:28]} Qd6 {[%emt 0:10:26]} 15. Nf2 {[%emt 0:08:17]} Bg6 {[%emt 0:03:32][%cal Ob6c4]} 16. Qc1 {[%emt 0:02:05]} Nd4 {[%emt 0:05:56]} 17. Bc3 {[%emt 0:06:24] [#] Bxd4 is the strong threat.} Nxe2+ {[%emt 0:08:37]} 18. Rxe2 {[%emt 0:00:10]} Bxc3 {[%emt 0:00:19]} ({Reject} 18... dxc4 19. dxc4 Bxc3 20. Qxc3 $11) 19. Qxc3 {[%emt 0:00:37]} Rxf4 {[%emt 0:01:08]} 20. Rfe1 {[%emt 0:04:41]} Re8 {[%emt 0:04:13]} 21. Ne5 {[%emt 0:04:24]} Bh5 {[%emt 0:02:39]} 22. Qd2 {[%emt 0:08:25]} Ref8 {[%emt 0:03:05] Black is more active.} 23. Nh3 {[%emt 0:02:15]} (23. g3 $17 {was the only defense.} Bxe2 24. gxf4) 23... R4f6 {[%emt 0:07:02]} 24. Rf2 {[%emt 0:01:50]} Rxf2 {[%emt 0:00:22]} 25. Nxf2 {[%emt 0:00:20] Excellent horsemanship.} dxc4 {[%emt 0:00:18]} 26. Qg5 {[%emt 0:03:09]} (26. Qc3 $17) 26... Rf5 {[%emt 0:07:31]} 27. Qe3 {[%emt 0:00:26]} Nd5 {[%emt 0:01:31]} 28. Nxc4 {[%emt 0:01:21] [#]} Qxh2+ {[%emt 0:00:12][%mdl 512]} 29. Kxh2 {[%emt 0:00:18]} Nxe3 {[%emt 0:00:01]} 30. Rxe3 {[%emt 0:00:57] aiming for Ne4.} Rxf2 $19 {[%emt 0:00:03][%mdl 4096] Endgame KRB-KRN} 31. Re5 {[%emt 0:00:51]} Be8 {[%emt 0:08:20]} 32. Rxc5 {[%emt 0:03:17]} Bc6 {[%emt 0:01:47]} 33. Rg5 {[%emt 0:01:40]} h6 {[%emt 0:01:28]} 34. Rg4 {[%emt 0:00:53]} b5 {[%emt 0:01:13]} 35. Ne5 {[%emt 0:00:51]} Bd5 {[%emt 0:00:10]} 36. b4 {[%emt 0:02:04]} (36. Rb4 $142) 36... Rxa2 {[%emt 0:00:29]} 37. Kg1 {[%emt 0:01:09]} g5 {[%emt 0:01:13]} 38. Nd7 {[%emt 0:01:04]} Kf7 {[%emt 0:00:38] Dodges Nf6} 39. Ne5+ {[%emt 0:00:32]} Kf6 {[%emt 0:00:20]} 40. Nd7+ {[%emt 0:00:29]} Kf5 {[%emt 0:00:09]} 41. Rg3 {[%emt 0:01:21]} h5 {[%emt 0:03:51][%cal Bh6h5,Bh5h4][%mdl 32] Strongly threatening ...g4.} 42. Kh1 {[%emt 0:01:11]} Kf4 {[%emt 0:00:35]} 43. Kh2 {[%emt 0:00:15]} h4 {[%emt 0:00:11][%mdl 64] Deflection.   Weighted Error Value: White=0.66/Black=0.10 (very precise)} 0-1

[Event "Prague Open 2024"]
[Site "Prague"]
[Date "2024.01.05"]
[Round "1.2"]
[White "Poetsch, Hagen"]
[Black "Stary, Vojtech"]
[Result "1-0"]
[ECO "B47"]
[WhiteElo "2471"]
[BlackElo "1873"]
[Annotator "TA"]
[PlyCount "57"]
[EventDate "2024.01.02"]
[EventType "swiss"]
[EventCountry "CZE"]
[SourceTitle "playchess.com"]
[Source "ChessBase"]
[SourceQuality "1"]
[TimeControl "40/5400+30:1800+30"]

{[%evp 9,57,27,44,29,32,7,2,5,20,16,16,24,31,35,33,27,50,34,109,38,28,37,42,37,28,35,47,25,222,108,112,119,150,114,185,192,166,176,190,159,191,145,462,431,1003,998,6634,6526,5190,5190]} 1. e4 c5 2. Ne2 e6 3. d4 cxd4 4. Nxd4 Nc6 5. Nc3 {[%cal Bb1c3,Bc3b5,Bb5d4][%mdl 32]} Qc7 6. Ncb5 {B47: Sicilian: Taimanov: 5 Nc3 Qc7 6 f4, 6 g3 and 6 Be2.} Qb8 7. Bd3 a6 8. Nxc6 {The position is equal.} bxc6 9. Nd4 {[#]} Bc5 $146 ({Predecessor:} 9... Nf6 10. O-O c5 11. Nf3 c4 12. Bxc4 Nxe4 13. Re1 Bb7 14. Qd4 Nf6 15. Ne5 Be7 {½-½ Antipov,M (2597)-Zhou,J (2557) US Masters op 2023 (6)}) 10. Nb3 Bb6 11. Qg4 Kf8 12. O-O {[%cal Oe4e5]} Nf6 13. Qh4 d5 {[#]} ({Black should play} 13... Bd8 $14) 14. e5 Nd7 $14 15. Be3 $36 {[%mdl 2048] White has some pressure.} (15. Bxh7 $2 Ke8 16. Re1 Nf8 $19) 15... a5 16. Rae1 (16. Bxh7 $2 Ke8 17. Rfe1 Bxe3 18. Rxe3 Nf8 $19) 16... Ba6 17. Bxa6 Rxa6 18. f4 {[%cal Bf2f4,Bf4f5,Bf5g6,Bg6g7][%mdl 32] Strongly threatening f5.} Bd8 $2 (18... Qd8 $11 {and Black has nothing to worry.} 19. Qxd8+ Bxd8) 19. Qh3 (19. Qf2 $18 {aiming for f5.} g6 20. Nd4) 19... a4 $16 20. Nc5 {White is more active.} Nxc5 21. Bxc5+ Be7 {Black is weak on the dark squares} (21... Kg8 $16 {might work better.}) 22. Bxe7+ $18 Kxe7 23. f5 Qb6+ 24. Kh1 c5 25. Qg3 (25. Rf4 $18) 25... g6 $2 {[%mdl 8192]} (25... Kf8 $16 26. fxe6 Qxe6) 26. Qh4+ {White is clearly winning.} Ke8 (26... Kd7 $142 27. fxe6+ fxe6 28. Rf7+ (28. Qf6 Qd8 $18) 28... Kc6) 27. fxg6 {Threatening mate with g7.} Ra7 28. g7 {[%mdl 64] [#] Deflection} Rg8 29. Qxh7 {Weighted Error Value: White=0.18 (very precise) /Black=0.43} 1-0

[Event "Prague Open 2024"]
[Site "Prague"]
[Date "2024.01.05"]
[Round "1.3"]
[White "Korenek, Frantisek"]
[Black "Shagbazyan, Taron"]
[Result "0-1"]
[ECO "A05"]
[WhiteElo "1870"]
[BlackElo "2403"]
[Annotator "RC"]
[PlyCount "68"]
[EventDate "2024.01.02"]
[EventType "swiss"]
[EventCountry "CZE"]
[SourceTitle "playchess.com"]
[Source "ChessBase"]
[SourceQuality "1"]
[TimeControl "40/5400+30:1800+30"]

1. Nf3 Nf6 2. g3 d5 3. d4 c6 4. Bg2 Bf5 5. O-O e6 6. c4 Be7 7. Nc3 h6 8. cxd5 exd5 9. a3 a5 10. Re1 O-O 11. b3 Nbd7 12. Bb2 Re8 13. e3 Bf8 14. Nd2 Nb6 15. Qe2 Nc8 16. Rec1 Nd6 17. Na4 g5 18. h3 h5 19. Nc5 Bh6 20. Nf3 g4 21. hxg4 Nxg4 22. Ne5 f6 23. Nxg4 hxg4 24. Kh2 Qe7 25. Rh1 Qh7 26. Kg1 Qg6 27. Rd1 Re7 28. Nd3 Ne4 29. Nf4 Bxf4 30. gxf4 Rae8 31. Rh4 Rh7 32. Rxh7 Qxh7 33. f3 gxf3 34. Qxf3 Kf7 0-1

[Event "Prague Open 2024"]
[Site "Prague"]
[Date "2024.01.05"]
[Round "1.4"]
[White "Neuman, Petr"]
[Black "Verner, Matej"]
[Result "1-0"]
[ECO "D34"]
[WhiteElo "2398"]
[BlackElo "1870"]
[Annotator "RC"]
[PlyCount "57"]
[EventDate "2024.01.02"]
[EventType "swiss"]
[EventCountry "CZE"]
[SourceTitle "playchess.com"]
[Source "ChessBase"]
[SourceQuality "1"]
[TimeControl "40/5400+30:1800+30"]

1. d4 {[%emt 0:00:03]} d5 {[%emt 0:00:04]} 2. c4 {[%emt 0:00:04]} e6 {[%emt 0:00:02]} 3. Nc3 {[%emt 0:00:05]} c5 {[%emt 0:00:03]} 4. cxd5 {[%emt 0:00:05]} exd5 {[%emt 0:00:03]} 5. Nf3 {[%emt 0:00:06]} Nc6 {[%emt 0:00:02]} 6. g3 {[%emt 0:00:06]} Nf6 {[%emt 0:00:04]} 7. Bg2 {[%emt 0:00:06]} Be7 {[%emt 0:00:02]} 8. O-O {[%emt 0:00:08]} O-O {[%emt 0:00:02]} 9. dxc5 {[%emt 0:00:04]} Bxc5 {[%emt 0:00:10]} 10. Na4 {[%emt 0:00:05]} Be7 {[%emt 0:00:04]} 11. Be3 {[%emt 0:00:05]} Re8 {[%emt 0:00:58]} 12. Rc1 {[%emt 0:00:22]} Bg4 {[%emt 0:00:39]} 13. h3 {[%emt 0:00:53]} Bh5 {[%emt 0:05:40]} 14. Nc5 {[%emt 0:07:48]} Qb6 {[%emt 0:29:51]} 15. Nd3 {[%emt 0:12:35]} Qa6 {[%emt 0:07:46]} 16. a3 {[%emt 0:02:29]} Bd6 {[%emt 0:05:36]} 17. Bc5 {[%emt 0:01:24]} Bxc5 {[%emt 0:05:41]} 18. Rxc5 {[%emt 0:00:57]} d4 {[%emt 0:02:16]} 19. Nf4 {[%emt 0:05:50]} Bxf3 {[%emt 0:16:01]} 20. Bxf3 {[%emt 0:02:06]} Rad8 {[%emt 0:00:39]} 21. Qd3 {[%emt 0:07:43]} Ne5 {[%emt 0:05:18]} 22. Qxa6 {[%emt 0:01:13]} Nxf3+ {[%emt 0:00:05]} 23. exf3 {[%emt 0:00:00]} bxa6 {[%emt 0:11:06]} 24. Rd1 {[%emt 0:05:59]} Nd7 {[%emt 0:01:10]} 25. Rc7 {[%emt 0:00:35]} Ne5 {[%emt 0:01:58]} 26. Kg2 {[%emt 0:03:08]} d3 {[%emt 0:07:05]} 27. Rxa7 {[%emt 0:00:02]} g5 {[%emt 0:00:12]} 28. Nh5 {[%emt 0:01:04]} Kf8 29. Nf6 1-0

[Event "Prague Open 2024"]
[Site "Prague"]
[Date "2024.01.05"]
[Round "1.5"]
[White "Gabadadze, Gabriel"]
[Black "Sowinski, Pawel"]
[Result "0-1"]
[ECO "B13"]
[WhiteElo "1865"]
[BlackElo "2357"]
[Annotator "RC"]
[PlyCount "118"]
[EventDate "2024.01.02"]
[EventType "swiss"]
[EventCountry "CZE"]
[SourceTitle "playchess.com"]
[Source "ChessBase"]
[SourceQuality "1"]
[TimeControl "40/5400+30:1800+30"]

1. e4 {[%emt 0:00:02]} c6 {[%emt 0:00:01]} 2. d4 {[%emt 0:00:09]} d5 {[%emt 0:00:06]} 3. exd5 {[%emt 0:00:13]} cxd5 {[%emt 0:00:04]} 4. Bd3 {[%emt 0:00:07]} Nc6 {[%emt 0:00:17]} 5. c3 {[%emt 0:00:03]} g6 {[%emt 0:00:09]} 6. Nf3 {[%emt 0:00:39]} Nf6 {[%emt 0:00:07]} 7. h3 {[%emt 0:00:19]} Bf5 {[%emt 0:01:06]} 8. Ne5 {[%emt 0:00:25]} Bg7 {[%emt 0:07:00]} 9. O-O {[%emt 0:18:28]} O-O {[%emt 0:01:23]} 10. Bxf5 {[%emt 0:19:20]} gxf5 {[%emt 0:00:20]} 11. Bf4 {[%emt 0:03:20]} e6 {[%emt 0:00:58]} 12. Nd2 {[%emt 0:03:05]} Qe7 {[%emt 0:04:43]} 13. Ndf3 {[%emt 0:03:33]} Ne4 {[%emt 0:04:38]} 14. Nd3 {[%emt 0:08:24]} f6 {[%emt 0:02:28]} 15. Re1 {[%emt 0:05:24]} Kh8 {[%emt 0:01:03]} 16. Nh4 {[%emt 0:11:17]} Qf7 {[%emt 0:00:30]} 17. Qf3 {[%emt 0:01:20]} Rg8 {[%emt 0:02:45]} 18. Kh1 {[%emt 0:04:20]} e5 {[%emt 0:05:59]} 19. Bh2 {[%emt 0:03:05]} f4 {[%emt 0:00:17]} 20. Rad1 {[%emt 0:10:08]} Rae8 {[%emt 0:11:04]} 21. dxe5 {[%emt 0:01:08]} fxe5 {[%emt 0:00:16]} 22. Rxe4 {[%emt 0:05:17]} dxe4 {[%emt 0:00:02]} 23. Qxe4 {[%emt 0:00:02]} Bf6 {[%emt 0:02:39]} 24. Nf3 {[%emt 0:01:49]} Qg6 {[%emt 0:00:20]} 25. Nd2 {[%emt 0:00:31]} Rd8 {[%emt 0:00:38]} 26. Qxg6 {[%emt 0:00:08]} hxg6 {[%emt 0:00:02]} 27. Ne4 {[%emt 0:00:28]} Be7 {[%emt 0:00:02]} 28. Kg1 {[%emt 0:00:47]} Rd5 {[%emt 0:04:44]} 29. Kf1 {[%emt 0:00:18]} b5 {[%emt 0:02:09]} 30. Ke2 {[%emt 0:00:47]} b4 {[%emt 0:02:21]} 31. f3 {[%emt 0:00:24]} bxc3 {[%emt 0:10:34]} 32. bxc3 {[%emt 0:00:09]} Rgd8 {[%emt 0:00:18]} 33. Rd2 {[%emt 0:00:25]} Na5 {[%emt 0:01:36]} 34. Nb2 {[%emt 0:00:27]} Ba3 {[%emt 0:02:31]} 35. Rxd5 {[%emt 0:00:17]} Rxd5 {[%emt 0:00:02]} 36. Nd3 {[%emt 0:00:12]} Nc4 {[%emt 0:00:47]} 37. Bg1 {[%emt 0:00:30]} Ra5 {[%emt 0:00:45]} 38. Kd1 {[%emt 0:00:44]} Be7 {[%emt 0:01:27]} 39. Nc1 {[%emt 0:00:21]} Bd8 {[%emt 0:01:31]} 40. Kc2 {[%emt 0:00:43]} Bb6 {[%emt 0:00:29]} 41. Bxb6 {[%emt 0:30:08]} axb6 {[%emt 0:30:05]} 42. Kd3 {[%emt 0:00:09]} Ne3 {[%emt 0:05:03]} 43. g4 {[%emt 0:01:47]} Kg7 {[%emt 0:01:21]} 44. Ke2 {[%emt 0:00:42]} Kf7 {[%emt 0:01:15]} 45. Kd3 {[%emt 0:00:30]} Ra8 {[%emt 0:01:41]} 46. Ke2 {[%emt 0:00:20]} Ke6 {[%emt 0:01:27]} 47. Kd3 {[%emt 0:00:31]} Kd5 {[%emt 0:03:56]} 48. Ng5 {[%emt 0:00:40]} Nc4 {[%emt 0:01:09]} 49. Ne4 {[%emt 0:00:17]} Nd6 {[%emt 0:00:44]} 50. Ng5 {[%emt 0:00:27]} Ra4 {[%emt 0:00:21]} 51. Ne2 {[%emt 0:00:00]} b5 {[%emt 0:00:00]} 52. h4 {[%emt 0:00:00]} Rxa2 {[%emt 0:00:00]} 53. h5 {[%emt 0:00:00]} gxh5 {[%emt 0:00:00]} 54. gxh5 {[%emt 0:00:00]} Nc4 {[%emt 0:00:00]} 55. Ne4 {[%emt 0:00:00]} Ra1 {[%emt 0:00:00]} 56. h6 {[%emt 0:00:00]} Rf1 {[%emt 0:00:00]} 57. Nf6+ {[%emt 0:00:00]} Ke6 {[%emt 0:00:00]} 58. h7 {[%emt 0:00:00]} Rxf3+ {[%emt 0:00:00]} 59. Kc2 {[%emt 0:00:00]} Rh3 {[%emt 0:00:00]} 0-1

[Event "Prague Open 2024"]
[Site "Prague"]
[Date "2024.01.05"]
[Round "1.6"]
[White "Ivanov, Mike"]
[Black "Kolar, Dan"]
[Result "1-0"]
[ECO "A05"]
[WhiteElo "2356"]
[BlackElo "1864"]
[Annotator "RC"]
[PlyCount "75"]
[EventDate "2024.01.02"]
[EventType "swiss"]
[EventCountry "CZE"]
[SourceTitle "playchess.com"]
[Source "ChessBase"]
[SourceQuality "1"]
[TimeControl "40/5400+30:1800+30"]

1. Nf3 {[%emt 0:00:04]} Nf6 {[%emt 0:00:07]} 2. g3 {[%emt 0:00:08]} c5 {[%emt 0:00:50]} 3. Bg2 {[%emt 0:00:22]} g6 {[%emt 0:00:07]} 4. O-O {[%emt 0:03:10]} Bg7 {[%emt 0:00:11]} 5. c3 {[%emt 0:00:20]} O-O {[%emt 0:00:42]} 6. d4 {[%emt 0:00:14]} cxd4 {[%emt 0:00:26]} 7. cxd4 {[%emt 0:00:10]} d5 {[%emt 0:03:16]} 8. Nc3 {[%emt 0:00:13]} e6 {[%emt 0:03:46]} 9. Bf4 {[%emt 0:08:43]} Bd7 {[%emt 0:27:14]} 10. Qb3 {[%emt 0:06:31]} Qb6 {[%emt 0:06:09]} 11. Qxb6 {[%emt 0:04:56]} axb6 {[%emt 0:02:48]} 12. Ne5 {[%emt 0:00:27]} Rc8 {[%emt 0:19:38]} 13. Nxd7 {[%emt 0:09:29]} Nbxd7 {[%emt 0:06:09]} 14. Rfd1 {[%emt 0:18:11]} h6 {[%emt 0:09:04]} 15. h4 {[%emt 0:12:03]} b5 {[%emt 0:03:58]} 16. Nxb5 {[%emt 0:02:03]} Rc2 {[%emt 0:00:17]} 17. Rd2 {[%emt 0:00:48]} Rxd2 {[%emt 0:03:43]} 18. Bxd2 {[%emt 0:00:11]} Ne4 {[%emt 0:00:17]} 19. Be1 {[%emt 0:06:56]} Bf8 {[%emt 0:03:55]} 20. Nc3 {[%emt 0:06:58]} Nxc3 {[%emt 0:01:59]} 21. Bxc3 {[%emt 0:00:38]} f5 {[%emt 0:00:20]} 22. a4 {[%emt 0:02:16]} b5 {[%emt 0:02:23]} 23. a5 {[%emt 0:01:05]} b4 {[%emt 0:00:01]} 24. Bd2 {[%emt 0:00:16]} Nb8 {[%emt 0:00:57]} 25. e3 {[%emt 0:00:34]} Na6 {[%emt 0:02:24]} 26. Bf1 {[%emt 0:00:21]} Kf7 {[%emt 0:00:07]} 27. Rc1 {[%emt 0:01:12]} Ra7 {[%emt 0:00:30]} 28. Rc8 {[%emt 0:03:24]} h5 {[%emt 0:01:18]} 29. Kg2 {[%emt 0:01:44]} Nc7 {[%emt 0:00:37]} 30. Rb8 {[%emt 0:00:30]} Na6 {[%emt 0:01:40]} 31. Rb6 {[%emt 0:00:30]} Nc7 {[%emt 0:00:28]} 32. Bxb4 {[%emt 0:05:44]} Na8 {[%emt 0:00:34]} 33. Bxf8 {[%emt 0:00:22]} Nxb6 {[%emt 0:00:24]} 34. axb6 {[%emt 0:00:07]} Rb7 {[%emt 0:00:15]} 35. Bc5 {[%emt 0:00:08]} Ke8 {[%emt 0:00:37]} 36. Ba6 {[%emt 0:00:13]} Rb8 {[%emt 0:00:48]} 37. b7 {[%emt 0:00:32]} Kd7 {[%emt 0:00:29]} 38. Ba7 {[%emt 0:00:23]} 1-0

[Event "Prague Open 2024"]
[Site "Prague"]
[Date "2024.01.05"]
[Round "1.7"]
[White "Stary, Lukas"]
[Black "Gomes, Mary Ann"]
[Result "0-1"]
[ECO "A04"]
[WhiteElo "1864"]
[BlackElo "2332"]
[Annotator "RC"]
[PlyCount "60"]
[EventDate "2024.01.02"]
[EventType "swiss"]
[EventCountry "CZE"]
[SourceTitle "playchess.com"]
[Source "ChessBase"]
[SourceQuality "1"]
[TimeControl "40/5400+30:1800+30"]

1. Nf3 c5 2. c4 Nc6 3. d4 cxd4 4. Nxd4 Nf6 5. Nc3 g6 6. g3 Bg7 7. Bg2 O-O 8. O-O Nxd4 9. Qxd4 d6 10. Qd3 Nd7 11. e4 Ne5 12. Qe2 Bg4 13. f3 Be6 14. Nd5 Rc8 15. Bg5 f6 16. Be3 Nxc4 17. Bxa7 Bxd5 18. exd5 b6 19. Rac1 Qc7 20. Kh1 Qxa7 21. Rxc4 Rxc4 22. Qxc4 f5 23. Rb1 Qa8 24. a4 Rc8 25. Qb5 Rc5 26. Qxb6 Qxa4 27. f4 Rc2 28. Qe3 Bf6 29. b4 Rxg2 30. Kxg2 Qc2+ 0-1

[Event "Prague Open 2024"]
[Site "Prague"]
[Date "2024.01.05"]
[Round "1.8"]
[White "Berin, Artem"]
[Black "Chiszko, Oskar"]
[Result "1-0"]
[ECO "E95"]
[WhiteElo "2327"]
[BlackElo "1862"]
[Annotator "RC"]
[PlyCount "159"]
[EventDate "2024.01.02"]
[EventType "swiss"]
[EventCountry "CZE"]
[SourceTitle "playchess.com"]
[Source "ChessBase"]
[SourceQuality "1"]
[TimeControl "40/5400+30:1800+30"]

1. d4 Nf6 2. c4 g6 3. Nc3 Bg7 4. e4 d6 5. Be2 Nbd7 6. Nf3 e5 7. O-O O-O 8. Re1 b6 9. Bf1 exd4 10. Nxd4 Bb7 11. f3 Re8 12. Be3 a6 13. Qd2 Ne5 14. Rad1 Qd7 15. b3 Rad8 16. Nd5 c5 17. Nc2 Nxd5 18. cxd5 f5 19. h3 fxe4 20. fxe4 b5 21. b4 Rc8 22. Rc1 Nf7 23. Bf4 Bb2 24. Rb1 Bf6 25. bxc5 dxc5 26. Be2 h5 27. Qd3 Kg7 28. Qg3 Kh7 29. Bf1 Ne5 30. Ne3 Qe7 31. Qh2 Rcd8 32. Kh1 Nf7 33. Bd3 Be5 34. Rf1 Rf8 35. Bc2 Bd4 36. a4 Ne5 37. Qg3 Rde8 38. Bg5 Qd6 39. Qh4 Rxf1+ 40. Rxf1 Rf8 41. Be7 Rxf1+ 42. Nxf1 Qd7 43. Qf6 Qe8 44. Bf8 Nd7 45. Qe7+ Qxe7 46. Bxe7 Bc3 47. axb5 axb5 48. Ne3 Ba6 49. d6 c4 50. Nd5 Ba5 51. Nc7 Bxc7 52. dxc7 Kg7 53. Kg1 Kf7 54. Bb4 Ke6 55. Kf2 Ne5 56. Ke3 Nc6 57. Be1 Kd7 58. Bg3 b4 59. Ba4 c3 60. Bf4 h4 61. g4 g5 62. Bh2 Bb7 63. Kd3 Ba6+ 64. Kc2 Bb7 65. Bb5 Kc8 66. Bc4 Kd7 67. Kd3 Na7 68. Ke3 Bc6 69. Bb3 Nc8 70. Kd4 Nb6 71. Kc5 Nc8 72. Kxb4 Bxe4 73. Kxc3 Bb7 74. Ba4+ Ke7 75. Kd4 Bg2 76. Bc2 Bb7 77. Bf5 Nb6 78. Kc5 Nd7+ 79. Kb5 Ke8 80. Bd6 1-0

[Event "Prague Open 2024"]
[Site "Prague"]
[Date "2024.01.05"]
[Round "1.9"]
[White "Rybacek, Martin"]
[Black "Mis, Mieszko"]
[Result "0-1"]
[ECO "E16"]
[WhiteElo "1861"]
[BlackElo "2301"]
[Annotator "RC"]
[PlyCount "64"]
[EventDate "2024.01.02"]
[EventType "swiss"]
[EventCountry "CZE"]
[SourceTitle "playchess.com"]
[Source "ChessBase"]
[SourceQuality "1"]
[TimeControl "40/5400+30:1800+30"]

1. d4 {[%emt 0:00:22]} Nf6 {[%emt 0:00:23]} 2. Nf3 {[%emt 0:00:10]} e6 {[%emt 0:00:43]} 3. g3 {[%emt 0:00:10]} b6 {[%emt 0:01:02]} 4. Bg2 {[%emt 0:00:43]} Bb7 {[%emt 0:00:05]} 5. c4 {[%emt 0:00:33]} Bb4+ {[%emt 0:00:51]} 6. Bd2 {[%emt 0:01:00]} c5 {[%emt 0:01:17]} 7. O-O {[%emt 0:10:05]} O-O {[%emt 0:04:31]} 8. Bxb4 {[%emt 0:11:03]} cxb4 {[%emt 0:00:06]} 9. Qb3 {[%emt 0:01:36]} a5 {[%emt 0:01:09]} 10. a3 {[%emt 0:01:44]} Na6 {[%emt 0:00:39]} 11. Nbd2 {[%emt 0:05:42]} Qe7 {[%emt 0:02:14]} 12. Rac1 {[%emt 0:03:41]} Rfc8 {[%emt 0:02:21]} 13. Rfd1 {[%emt 0:02:42]} d6 {[%emt 0:09:00]} 14. Nf1 {[%emt 0:04:50]} Rc7 {[%emt 0:03:16]} 15. Ne3 {[%emt 0:04:48]} Rac8 {[%emt 0:02:13]} 16. Rd2 {[%emt 0:03:00]} Ne4 {[%emt 0:11:19]} 17. Rdc2 {[%emt 0:03:55]} Nec5 {[%emt 0:00:57]} 18. dxc5 {[%emt 0:03:34]} Nxc5 {[%emt 0:00:03]} 19. Nd5 {[%emt 0:01:08]} exd5 {[%emt 0:01:31]} 20. Qe3 {[%emt 0:00:14]} Qxe3 {[%emt 0:00:04]} 21. fxe3 {[%emt 0:00:11]} Nb3 {[%emt 0:00:45]} 22. Rd1 {[%emt 0:01:01]} Rxc4 {[%emt 0:00:06]} 23. Rxc4 {[%emt 0:01:16]} dxc4 {[%emt 0:00:03]} 24. axb4 {[%emt 0:03:34]} axb4 {[%emt 0:00:08]} 25. Rxd6 {[%emt 0:02:23]} Bxf3 {[%emt 0:05:25]} 26. Bxf3 {[%emt 0:00:22]} c3 {[%emt 0:00:32]} 27. bxc3 {[%emt 0:00:27]} bxc3 {[%emt 0:00:07]} 28. Be4 {[%emt 0:00:24]} Na1 {[%emt 0:03:56]} 29. Rd1 {[%emt 0:05:07]} c2 {[%emt 0:00:05]} 30. Rc1 {[%emt 0:00:05]} b5 {[%emt 0:00:02]} 31. Kf2 {[%emt 0:02:11]} b4 {[%emt 0:01:25]} 32. Bf5 {[%emt 0:03:10]} b3 {[%emt 0:00:54]} 0-1

[Event "Prague Open 2024"]
[Site "Prague"]
[Date "2024.01.05"]
[Round "1.10"]
[White "Grave, Jacob Templen"]
[Black "Roubal, Matyas"]
[Result "1-0"]
[ECO "E91"]
[WhiteElo "2296"]
[BlackElo "1857"]
[Annotator "RC"]
[PlyCount "65"]
[EventDate "2024.01.02"]
[EventType "swiss"]
[EventCountry "CZE"]
[SourceTitle "playchess.com"]
[Source "ChessBase"]
[SourceQuality "1"]
[TimeControl "40/5400+30:1800+30"]

1. d4 {[%emt 0:00:04]} Nf6 {[%emt 0:00:07]} 2. c4 {[%emt 0:00:11]} g6 {[%emt 0:00:04]} 3. Nc3 {[%emt 0:00:15]} Bg7 {[%emt 0:00:09]} 4. e4 {[%emt 0:00:14]} d6 {[%emt 0:00:04]} 5. Nf3 {[%emt 0:00:07]} O-O {[%emt 0:00:06]} 6. Be2 {[%emt 0:00:20]} c5 {[%emt 0:00:07]} 7. O-O {[%emt 0:02:32]} cxd4 {[%emt 0:00:13]} 8. Nxd4 {[%emt 0:00:07]} Nc6 {[%emt 0:00:12]} 9. Be3 {[%emt 0:00:59]} Bd7 {[%emt 0:00:12]} 10. f3 {[%emt 0:03:25]} Nxd4 {[%emt 0:00:20]} 11. Bxd4 {[%emt 0:00:09]} a5 {[%emt 0:00:27]} 12. Qd2 {[%emt 0:04:28]} Bc6 {[%emt 0:00:11]} 13. Rab1 {[%emt 0:02:43]} Nd7 {[%emt 0:00:14]} 14. Be3 {[%emt 0:00:21]} Nc5 {[%emt 0:00:30]} 15. b3 {[%emt 0:04:36]} Be5 {[%emt 0:03:40]} 16. Rfc1 {[%emt 0:12:46]} e6 {[%emt 0:00:47]} 17. Bg5 {[%emt 0:03:30]} f6 {[%emt 0:07:24]} 18. Be3 {[%emt 0:03:10]} f5 {[%emt 0:01:52]} 19. exf5 {[%emt 0:01:50]} gxf5 {[%emt 0:00:42]} 20. f4 {[%emt 0:01:22]} Bxc3 {[%emt 0:06:37]} 21. Qxc3 {[%emt 0:00:24]} Ne4 {[%emt 0:00:11]} 22. Qd3 {[%emt 0:05:25]} Rf6 {[%emt 0:04:29]} 23. Bf3 {[%emt 0:10:12]} Rh6 {[%emt 0:04:25]} 24. Rb2 {[%emt 0:05:40]} Kf7 {[%emt 0:02:43]} 25. g3 {[%emt 0:06:37]} Qf6 {[%emt 0:03:03]} 26. Rg2 {[%emt 0:01:12]} Rg8 {[%emt 0:00:24]} 27. a3 {[%emt 0:02:45]} Rh3 {[%emt 0:01:36]} 28. b4 {[%emt 0:01:43]} Qh6 {[%emt 0:06:42]} 29. b5 {[%emt 0:16:13]} Rgxg3 {[%emt 0:02:07]} 30. bxc6 {[%emt 0:01:34]} Rxf3 {[%emt 0:02:11]} 31. cxb7 {[%emt 0:02:26]} Qf8 {[%emt 0:00:59]} 32. Qd4 {[%emt 0:01:38]} Nc5 {[%emt 0:04:30]} 33. b8=Q {[%emt 0:01:21]} 1-0